Cogmind - Beta 12 @@@ ROGUE MODE // 2023.10.02 @ 16:15:51 Player: Trantor Result: Destroyed by Y-54 Guardian with Gatling Laser Performance ------------- Evolutions (3) 1500 Regions Visited (12) 2400 Robots Destroyed (163) 815 Value Destroyed (7948) 7948 Prototype IDs (44) 880 Alien Tech Used (0) 0 Bonus (1266) 1266 TOTAL SCORE: 14809 Bonus ------- High Alert Combat Kills 496 Follower Combat Kills 276 Entered Garrisons 400 Aligned with FarCom 300 Friendly Fire -206 Cogmind --------- Core Integrity 0/700 Matter 209/300 Energy 290/290 System Corruption 28% Temperature Cool (6) Movement Treading (160) Location -7/Factory Parts ------- > --- POWER (1) -------- Improved Deuterium Engine > --- PROPULSION (5) --- Improved Heavy Treads Improved Heavy Treads Carbon-fiber Leg > --- UTILITY (5) ------ Large Storage Unit Trap Scanner Improved Medium Armor Plating Hacking Suite System Shield > --- WEAPON (2) ------- Flak Gun Heavy Flail > --- INVENTORY (15) --- Light Ion Engine Large Matter Pod (0) Shield Generator Dynamic Insulation System Guided Plasma Cannon Mini Assault Cannon Remote Datajack Peak State ------------ > --- POWER ------------ Improved Deuterium Engine > --- PROPULSION ------- Improved Heavy Treads Improved Heavy Treads Carbon-fiber Leg > --- UTILITY ---------- Trap Scanner Improved Medium Armor Plating Hacking Suite System Shield System Restoration Module > --- WEAPON ----------- Flak Gun Heavy Flail > --- INVENTORY -------- Large Matter Pod Shield Generator Guided Plasma Cannon Mini Assault Cannon Remote Datajack [Rating: 61] Favorites ----------- Power Cooled Ion Engine Engine Cooled Ion Engine Power Core Light Nuclear Core Reactor Particle Reactor Propulsion Light Treads Treads Light Treads Leg Aluminum Leg Wheel Armored Wheel Hover Unit Gravmag System Flight Unit VTOL Module Utility Hacking Suite Device Improved Heat Sink Storage High-capacity Storage Unit Processor Advanced Targeting Computer Hackware Hacking Suite Protection Improved Light Armor Plating Weapon Improved Light Cannon Energy Gun Precision Beam Rifle Energy Cannon Plasma Cannon Ballistic Gun Flak Gun Ballistic Cannon Improved Light Cannon Launcher Grenade Launcher Impact Weapon Heavy Flail Build | -11 -10 -10 -10 -9 -8 -8 -8 -7 -7 -7 -7 -7 ------- Run | Jun Mat Min Exi Min Mat Gar Mat Fac Was Fac Gar Fac Slots Evolved 6 | . . . . . 4 . . 2 . . . . Power . | . . . . . . . . . . . . . Propulsion 3 | . . . . . 2 . . 1 . . . . Utility 3 | . . . . . 2 . . 1 . . . . Weapon . | . . . . . . . . . . . . . Parts Attached 225 | 2 25 3 1 12 32 20 35 30 2 10 46 7 Power 20 | . 6 . . . . 1 3 4 . . 6 . Engine 16 | . 6 . . . . 1 3 4 . . 2 . Core 3 | . . . . . . . . . . . 3 . Reactor 1 | . . . . . . . . . . . 1 . Propulsion 54 | 2 2 . . 3 7 4 14 9 . 2 11 . Treads 27 | 2 2 . . 1 3 1 9 6 . 1 2 . Leg 10 | . . . . . . . 4 . . . 6 . Wheel 8 | . . . . 2 4 . . 2 . . . . Hover 6 | . . . . . . 3 1 1 . 1 . . Flight 3 | . . . . . . . . . . . 3 . Utility 52 | . 8 2 1 3 11 2 7 3 . 4 4 7 Device 19 | . 5 1 . . 5 . . 1 . 2 2 3 Storage 9 | . 2 . 1 . 2 . 1 1 . . . 2 Processor 3 | . . . . 1 . . 1 . . . 1 . Hackware 3 | . . . . . . . 2 . . . . 1 Protection 18 | . 1 1 . 2 4 2 3 1 . 2 1 1 Artifact . | . . . . . . . . . . . . . Weapon 99 | . 9 1 . 6 14 13 11 14 2 4 25 . Energy Gun 13 | . . . . . 1 . 3 5 . 1 3 . Energy Cannon 4 | . . . . . . 1 1 1 . . 1 . Ballistic Gun 15 | . 3 . . . 4 3 2 1 . . 2 . Ballistic Cannon 33 | . 4 . . 3 5 2 3 6 . 3 7 . Launcher 21 | . 2 1 . 2 3 4 . . 2 . 7 . Special Weapon . | . . . . . . . . . . . . . Impact Weapon 13 | . . . . 1 1 3 2 1 . . 5 . Slashing Weapon . | . . . . . . . . . . . . . Piercing Weapon . | . . . . . . . . . . . . . Special Melee Weapon . | . . . . . . . . . . . . . Unidentified Prototypes 8 | . 1 1 . . 2 . 2 1 . 1 . . Corrupted Parts 4 | . . . . . . . 2 . . . 2 . System Corruption 28 | . . . . . . . 11 . . . 17 . Parts Lost 47 | . 5 . . 1 1 11 5 2 6 . 16 . Power 9 | . 2 . . . . 1 1 1 1 . 3 . Propulsion 19 | . . . . 1 1 6 1 1 2 . 7 . Utility 12 | . 1 . . . . 3 1 . 2 . 5 . Weapon 7 | . 2 . . . . 1 2 . 1 . 1 . Highest Loss Streak 6 | . 5 . . 1 1 5 4 2 3 . 6 . To Critical Strikes 1 | . . . . . . . . . . . 1 . Average Slot Usage (%) 90 | . 98 100 100 99 96 83 90 94 56 74 63 79 Engine 9 | . 14 14 14 14 9 9 8 6 5 . 2 7 Treads 20 | . 28 28 28 25 17 12 19 30 1 7 5 15 Leg 2 | . . . . . . . 7 . . . 7 7 Wheel 3 | . . . . 2 17 6 . 3 13 7 1 . Hover 1 | . . . . . . 5 3 . . 7 1 . Device 6 | . 12 8 . . 11 17 1 5 1 7 5 7 Storage 9 | . 14 14 14 14 9 9 9 7 7 7 2 3 Hackware 5 | . . . . . . . 17 15 15 15 8 9 Protection 7 | . . 5 14 13 12 4 6 6 5 6 2 11 Energy Gun 1 | . . . . . . . 1 6 . 6 . . Ballistic Gun 3 | . 18 . . . 7 2 4 . . . 1 7 Ballistic Cannon 11 | . 8 22 14 25 7 8 7 6 . 6 4 . Launcher 1 | . . 5 14 . . . . . 3 . 1 . Impact Weapon 2 | . . . . 1 1 5 . . . . 6 7 Naked Turns . | . . . . . . . . . . . . . Heaviest Build 72 | 14 39 39 56 56 70 71 63 66 70 55 72 46 Greatest Support 150 | 40 40 40 40 40 46 27 80 100 56 28 150 150 Greatest Overweight (x) 16 | . . . 1 5 5 7 6 3 1 1 16 . Average Overweight (x) . | . . . . 1 2 2 1 . . 1 . . Largest Inventory Capacity 20 | 8 15 15 20 20 20 20 20 20 20 20 20 15 Average Capacity 16 | 8 11 15 19 20 20 20 20 20 20 20 9 6 Most Carried 20 | 6 15 15 18 20 20 20 20 20 20 19 20 7 Average Carried 15 | 6 9 14 16 18 19 18 18 19 20 15 9 5 Final Capacity 20 | 8 15 15 20 20 20 20 20 20 20 20 5 15 Final Carried 20 | 6 14 15 18 19 19 17 19 20 20 17 5 7 Class Distribution -------------------- 56% | Mutant 22% | Hacker-Mutant 20% | Scavenger-Mutant Dominant Class ---------------- Mutant | -10/Materials Mutant | -10/Mines Mutant | -10/Exiles Mutant | -9/Mines Mutant | -8/Materials Mutant | -8/Garrison Hacker-Mutant | -8/Materials Hacker-Mutant | -7/Factory Hacker-Mutant | -7/Waste Hacker-Mutant | -7/Factory Scavenger-Mutant | -7/Garrison Scavenger-Mutant | -7/Factory Resources | -11 -10 -10 -10 -9 -8 -8 -8 -7 -7 -7 -7 -7 ----------- Run | Jun Mat Min Exi Min Mat Gar Mat Fac Was Fac Gar Fac Matter Collected 6760 | 200 569 206 200 956 654 655 987 710 . 151 1411 61 Remotely . | . . . . . . . . . . . . . Salvage Created 6147 | . 560 102 . 376 857 717 1159 739 46 56 1474 61 Parts 266 | . 41 11 . 20 45 30 42 32 2 3 34 6 Haulers Intercepted 11 | . 2 . . . 1 . 4 3 . 1 . . Recyclers Shooed . | . . . . . . . . . . . . . Parts Field Recycled . | . . . . . . . . . . . . . Retrieved Matter . | . . . . . . . . . . . . . Parts Self-Destructed . | . . . . . . . . . . . . . Prevented . | . . . . . . . . . . . . . Kills | -11 -10 -10 -10 -9 -8 -8 -8 -7 -7 -7 -7 -7 ------- Run | Jun Mat Min Exi Min Mat Gar Mat Fac Was Fac Gar Fac Combat Hostiles Destroyed 129 | . 12 3 . 14 18 13 22 17 . . 29 1 Guns 32 | . 9 . . . 5 3 10 2 . . 2 1 Cannons 55 | . 2 . . 6 9 7 11 11 . . 9 . AOE 40 | . 1 3 . 8 4 3 1 3 . . 17 . Classes Destroyed 15 | . 5 3 . 1 3 1 1 1 . . . . Worker 6 | . 1 1 . 2 . . 2 . . . . . Tunneler 5 | . . 1 . 4 . . . . . . . . Hauler 11 | . 2 . . . 1 . 4 3 . 1 . . Recycler 3 | . . 1 . . 1 . 1 . . . . . Mechanic 1 | . . . . . . . . 1 . . . . Operator 4 | . 2 . . . 1 . . . . . . 1 Watcher 6 | . 1 . . . 2 . 2 1 . . . . Swarmer 16 | . . 3 . . 1 3 . 1 . . 8 . Grunt 77 | . 12 . . 11 13 2 14 9 . . 16 . Brawler 4 | . . . . . 1 . 2 . . . 1 . Duelist 3 | . . . . . . . 2 1 . . . . Sentry 10 | . . . . . 2 . 4 1 . . 2 1 Hunter 4 | . . . . . 1 . . 2 . . 1 . Programmer 12 | . . . . . . 8 . 3 . . 1 . Assembled 3 | . . . . 3 . . . . . . . . Thug 1 | . . . . . . . . . 1 . . . Best Kill Streak 8 | . 3 3 . 8 4 3 7 6 . 1 4 1 Combat Bots Only 5 | . 3 2 . 5 4 3 4 5 . . 4 1 Max Kills in Single Turn 4 | . 2 2 . 4 3 2 2 4 1 1 4 1 Gunslinging . | . . . . . . . . . . . . . Exploded 4 | . 1 2 . 2 2 2 1 3 . . 4 . Melee . | . . . . . . . . . . . . . Uniques/NPCs Destroyed . | . . . . . . . . . . . . . Combat | -11 -10 -10 -10 -9 -8 -8 -8 -7 -7 -7 -7 -7 -------- Run | Jun Mat Min Exi Min Mat Gar Mat Fac Was Fac Gar Fac Damage Taken 9631 | . 974 44 . 247 977 1534 1140 1527 417 . 2502 269 Core 1350 | . 135 . . 23 68 249 169 95 110 . 474 27 Absorbed by Shields 174 | . . . . . 132 20 . . . . 22 . Redirected to Shielding 5 | . . . . 5 . . . . . . . . Regen/Repaired (Parts) 179 | . . . . . 24 . . 155 . . . . Core Remaining (%) 49 | 100 . . . 36 . . 11 . . . . . Volleys Fired 448 | . 65 12 . 29 51 34 84 55 5 1 101 11 Largest 2 | . 2 1 . 2 2 2 2 2 2 1 2 1 Hottest 120 | . 78 39 . 74 69 76 109 120 78 61 120 28 Shots Fired 705 | . 124 14 . 51 98 53 121 106 9 1 118 10 Gun 325 | . 107 . . . 49 22 55 51 . 1 30 10 Cannon 316 | . 13 10 . 45 46 21 66 55 . . 60 . Launcher 64 | . 4 4 . 6 3 10 . . 9 . 28 . Special . | . . . . . . . . . . . . . Kinetic 560 | . 120 10 . 45 95 43 102 54 . . 81 10 Thermal 81 | . . . . . . . 19 52 . 1 9 . Explosive 64 | . 4 4 . 6 3 10 . . 9 . 28 . Electromagnetic . | . . . . . . . . . . . . . Robot Hit Streak 19 | . 11 5 . 8 8 7 15 17 5 6 19 5 Robot Miss Streak 7 | . 2 2 . 6 2 5 6 3 3 . 7 5 Penetration Max 1 | . . . . . . . 1 . . . . . Secondary Targets 1 | . 1 . . . . . . . . . . . Max Gunslinging Chain 1 | . 1 . . . . . . . . . . . Shots Hit Robots 529 | . 89 7 . 26 68 52 93 80 6 1 97 10 Core Hits 362 | . 37 7 . 29 43 27 91 29 1 1 82 15 Critical Kills 1 | . 1 . . . . . . . . . . . Critical Parts Destroyed 11 | . . . . . . 6 . . . . 5 . Critical Strikes 43 | . 2 1 . . 2 9 7 14 . . 8 . Burn 4 | . . . . . . . 1 3 . . . . Destroy 2 | . 1 . . . . 1 . . . . . . Blast 27 | . 1 1 . . 2 3 6 11 . . 3 . Smash 10 | . . . . . . 5 . . . . 5 . Melee Attacks 166 | . . . . 8 3 73 . 5 . . 77 . Impact 166 | . . . . 8 3 73 . 5 . . 77 . Slashing . | . . . . . . . . . . . . . Piercing . | . . . . . . . . . . . . . Sneak Attacks 2 | . . . . 2 . . . . . . . . Combat Hostiles . | . . . . . . . . . . . . . Follow-up Attacks . | . . . . . . . . . . . . . Damage Inflicted 18991 | . 1348 361 . 1188 1730 1909 2317 2563 1023 18 6365 169 Guns 4194 | . 1017 . . . 567 295 981 787 . 18 360 169 Cannons 5576 | . 163 149 . 441 879 507 1254 1143 . . 1040 . Explosions 5993 | . 161 212 . 645 284 304 82 633 1023 . 2649 . Melee 3178 | . . . . 102 . 760 . . . . 2316 . Ramming 50 | . 7 . . . . 43 . . . . . . Kinetic 8597 | . 1180 149 . 441 1446 802 1978 1103 . . 1329 169 Thermal 1862 | . . . . 56 . . 257 1460 . 18 71 . Explosive 5222 | . 161 212 . 589 284 304 . . 1023 . 2649 . Electromagnetic 82 | . . . . . . . 82 . . . . . Impact 3178 | . . . . 102 . 760 . . . . 2316 . Slashing . | . . . . . . . . . . . . . Piercing . | . . . . . . . . . . . . . Highest Corruption 29 | . 8 8 8 8 3 8 19 1 1 1 29 29 Average Corruption 9 | . 8 8 8 8 2 6 16 1 1 1 11 28 Corruption Purged 1 | . . . . . . . . . . . . 1 Corruption Blocked . | . . . . . . . . . . . . . Effects 441 | . 23 47 37 76 16 44 99 2 1 . 75 21 Message Errors 119 | . 6 10 9 20 5 18 27 . . . 17 7 Matter Fused 103 | . 5 10 11 20 7 10 20 . . . 16 4 Heat Flow Errors 48 | . 2 5 4 8 2 3 11 1 . . 10 2 Energy Discharges 43 | . 1 3 3 7 1 1 15 1 . . 8 3 Parts Rejected 5 | . 1 . . 1 . . 2 . . . 1 . Parts Fused 4 | . . . 1 1 . . 2 . . . . . Data Loss (minor) 63 | . 5 12 3 9 1 8 9 . . . 12 4 Data Loss (major) 21 | . 1 3 3 4 . 3 4 . 1 . 2 . Misfires 14 | . 2 2 . 3 . . 2 . . . 5 . Alerts 12 | . . 2 3 3 . . 2 . . . 2 . Weapon Failures 9 | . . . . . . 1 5 . . . 2 1 Overload Shots . | . . . . . . . . . . . . . Overflow Damage 1675 | . 10 . . 63 9 286 19 213 87 . 988 . Projectiles 104 | . 8 . . . 9 45 10 14 . . 18 . Explosions 464 | . 2 . . 33 . . 9 199 87 . 134 . Melee 1107 | . . . . 30 . 241 . . . . 836 . Knockbacks 66 | . 2 3 . 6 10 11 12 14 . . 8 . Impact 6 | . . . . . . 3 . . . . 3 . Kinetic 53 | . 2 3 . 6 9 4 11 13 . . 5 . Secondary 7 | . . . . . 1 4 1 1 . . . . Self-Inflicted Damage 886 | . . . . 79 24 20 59 241 263 . 200 . Shots 20 | . . . . 2 1 . 2 3 8 . 4 . Rammed 7 | . 1 . . . . 6 . . . . . . Targets Rammed 7 | . 1 . . . . 6 . . . . . . Kicked . | . . . . . . . . . . . . . Crushed . | . . . . . . . . . . . . . Highest Temperature 428 | . 177 277 279 267 181 172 337 428 15 . 233 214 Average Temperature 94 | . 41 101 120 59 31 90 72 152 9 . 82 99 Received Heat Transfer 2541 | . 384 . . 118 464 174 513 369 . . 495 24 Effects 8 | . . . . 1 . . 2 5 . . . . Energy Bleed 4 | . . . . 1 . . . 3 . . . . Interference 2 | . . . . . . . 2 . . . . . Short Circuit 1 | . . . . . . . . 1 . . . . Damage (minor) 1 | . . . . . . . . 1 . . . . Siege Activations . | . . . . . . . . . . . . . Robots Corrupted . | . . . . . . . . . . . . . Combat Hostiles . | . . . . . . . . . . . . . Parts Fried 12 | . . . . . . 2 . . . . 10 . Impact Corruptions 24 | . . . . 1 . 8 . . . . 15 . Robots Melted 1 | . . . . . . . . 1 . . . . Combat Hostiles 1 | . . . . . . . . 1 . . . . Parts Melted 3 | . . . . 1 . . . 2 . . . . Heat Transferred 3122 | . . . . 50 . . 594 2293 . 37 148 . Parts Sabotaged . | . . . . . . . . . . . . . Parts Stolen . | . . . . . . . . . . . . . Parts Stripped . | . . . . . . . . . . . . . Power Chain Reactions 1 | . . . . . . . 1 . . . . . Missiles Intercepted . | . . . . . . . . . . . . . Alert | -11 -10 -10 -10 -9 -8 -8 -8 -7 -7 -7 -7 -7 ------- Run | Jun Mat Min Exi Min Mat Gar Mat Fac Was Fac Gar Fac Peak Influence 1908 | . 195 137 . 196 450 704 434 319 140 87 1908 1080 Initial 1001 | . . 1 . . 1 50 318 166 111 77 60 1001 Average 281 | . 46 33 . 30 165 452 262 123 127 83 854 1003 Maximum Alert Level 5 | . . . . . 2 3 2 1 . . 5 3 Low Security (%) 60 | 100 100 100 . 100 66 18 25 77 100 100 16 . Level 1 17 | . . . . . 18 5 74 22 . . 9 . Level 2 10 | . . . . . 14 72 . . . . 15 . Level 3 6 | . . . . . . 3 . . . . 25 100 Level 4 3 | . . . . . . . . . . . 23 . Level 5 1 | . . . . . . . . . . . 9 . High Security . | . . . . . . . . . . . . . Max Security . | . . . . . . . . . . . . . Squads Dispatched 18 | . 3 . . . 5 . 4 6 . . . . Investigation 6 | . 1 . . . 2 . 1 2 . . . . Extermination 3 | . . . . . . . . 3 . . . . Reinforcement 9 | . 2 . . . 3 . 3 1 . . . . Assault . | . . . . . . . . . . . . . Garrison . | . . . . . . . . . . . . . Intercept . | . . . . . . . . . . . . . Searches Triggered . | . . . . . . . . . . . . . Construction Impeded 2 | . . . . . 1 . 1 . . . . . Haulers Reinforced 1 | . . . . . . . . 1 . . . . Active Scanning Responses . | . . . . . . . . . . . . . Cargo Convoy Interrupts . | . . . . . . . . . . . . . Stealth | -11 -10 -10 -10 -9 -8 -8 -8 -7 -7 -7 -7 -7 --------- Run | Jun Mat Min Exi Min Mat Gar Mat Fac Was Fac Gar Fac Distress Signals 12 | . 3 . . . 7 . 2 . . . . . Communications Jammed . | . . . . . . . . . . . . . Distress Signals . | . . . . . . . . . . . . . Times Spotted 192 | . 26 5 . 15 32 15 35 26 5 . 30 3 Peak Tracking Total 7 | . 4 3 . 3 7 4 4 6 6 . 6 1 Tactical Retreats 15 | . 1 . . 1 5 . . 1 . . 7 . Traps | -11 -10 -10 -10 -9 -8 -8 -8 -7 -7 -7 -7 -7 ------- Run | Jun Mat Min Exi Min Mat Gar Mat Fac Was Fac Gar Fac Traps Triggered 20 | . . . . . 3 9 . 3 . . 4 1 Indirectly . | . . . . . . . . . . . . . Trap Hack Attempts . | . . . . . . . . . . . . . Triggered . | . . . . . . . . . . . . . Disarmed . | . . . . . . . . . . . . . Reprogrammed . | . . . . . . . . . . . . . Reused . | . . . . . . . . . . . . . Traps Extracted . | . . . . . . . . . . . . . Installed . | . . . . . . . . . . . . . Triggered . | . . . . . . . . . . . . . Machines | -11 -10 -10 -10 -9 -8 -8 -8 -7 -7 -7 -7 -7 ---------- Run | Jun Mat Min Exi Min Mat Gar Mat Fac Was Fac Gar Fac Machines Disabled 29 | . . 1 . 1 2 6 4 5 . . 10 . Max in Single Turn 4 | . . 1 . 1 1 1 1 4 . . 2 . Garrison Access 1 | . . . . . . . . 1 . . . . Garrison Relay 9 | . . . . . . 5 . . . . 4 . Phase Generator 1 | . . . . . . . . . . . 1 . Machines Repaired . | . . . . . . . . . . . . . Machines Sabotaged . | . . . . . . . . . . . . . Overloaded Fab Kills . | . . . . . . . . . . . . . Hacking | -11 -10 -10 -10 -9 -8 -8 -8 -7 -7 -7 -7 -7 --------- Run | Jun Mat Min Exi Min Mat Gar Mat Fac Was Fac Gar Fac Machines Accessed 47 | . 6 1 5 . 8 . 9 9 . 2 4 3 Terminals 29 | . 5 1 . . 5 . 8 3 . 1 4 2 Fabricators 2 | . . . . . . . . 2 . . . . Repair Stations 4 | . . . . . 1 . . 2 . . . 1 Recycling Units 1 | . 1 . . . . . . . . . . . Scanalyzers 3 | . . . . . 1 . 1 1 . . . . Garrison Access 3 | . . . . . 1 . . 1 . 1 . . Total Hacks 157 | . 19 4 28 . 27 . 36 24 . 4 8 7 Successful 105 | . 10 1 28 . 20 . 23 16 . 3 2 2 Failed 50 | . 9 3 . . 6 . 12 8 . 1 6 5 Catastrophic 5 | . 2 . . . 1 . . . . . 2 . Database Lockouts 2 | . . . . . 1 . 1 . . . . . Manual 50 | . 6 . 1 . 10 . 23 5 . 1 . 4 Terminals 90 | . 16 4 . . 17 . 32 6 . 3 8 4 Fabricators 7 | . . . . . . . . 7 . . . . Repair Stations 14 | . . . . . 3 . . 8 . . . 3 Recycling Units 3 | . 3 . . . . . . . . . . . Scanalyzers 12 | . . . . . 6 . 4 2 . . . . Garrison Access 3 | . . . . . 1 . . 1 . 1 . . Terminal Hacks 56 | . 5 1 28 . 7 . 11 1 . 1 2 . Record 27 | . . . 27 . . . . . . . . . Part Schematic 2 | . . . . . 1 . 1 . . . . . Robot Analysis 1 | . . . . . 1 . . . . . . . Prototype ID Bank 10 | . 4 . . . 3 . 3 . . . . . Open Door 1 | . . . . . . . . . . . 1 . Open DSF 1 | . . . . . . . . 1 . . . . Branch Access Points 3 | . . . . . . . 2 . . 1 . . Emergency Access Points 1 | . . . . . . . . . . . 1 . Terminal Index 1 | . . . . . . . 1 . . . . . Unreport Threat 4 | . 1 . . . 2 . 1 . . . . . Locate Traps 1 | . . . . . . . 1 . . . . . Hauler Manifests 1 | . . . . . . . 1 . . . . . Registered Components 1 | . . . . . . . 1 . . . . . Zone Layout 1 | . . 1 . . . . . . . . . . EX-Prototype ID Bank 1 | . . . 1 . . . . . . . . . Fabricator Hacks 6 | . . . . . . . . 6 . . . . Network Status 1 | . . . . . . . . 1 . . . . Load Schematic 2 | . . . . . . . . 2 . . . . Build 3 | . . . . . . . . 3 . . . . Repair Station Hacks 7 | . . . . . 2 . . 4 . . . 1 Scan Component 5 | . . . . . 1 . . 3 . . . 1 Repair 2 | . . . . . 1 . . 1 . . . . Recycling Unit Hacks 2 | . 2 . . . . . . . . . . . Report Inventory 1 | . 1 . . . . . . . . . . . Retrieve Components 1 | . 1 . . . . . . . . . . . Scanalyzer 11 | . . . . . 6 . 4 1 . . . . Insert Component 6 | . . . . . 3 . 2 1 . . . . Analyze 5 | . . . . . 3 . 2 . . . . . Garrison Access Hacks 3 | . . . . . 1 . . 1 . 1 . . Unlock Access 2 | . . . . . 1 . . . . 1 . . Seal Access 1 | . . . . . . . . 1 . . . . Unauthorized Hacks 20 | . 3 . . . 4 . 8 3 . 1 . 1 Terminals 20 | . 3 . . . 4 . 8 3 . 1 . 1 Track 3 | . . . . . . . 2 1 . . . . Botnet 15 | . 3 . . . 4 . 4 2 . 1 . 1 Operators 2 | . . . . . . . 2 . . . . . Fabricators . | . . . . . . . . . . . . . Repair Stations . | . . . . . . . . . . . . . Recycling Units . | . . . . . . . . . . . . . Scanalyzers . | . . . . . . . . . . . . . Garrison Access . | . . . . . . . . . . . . . Data Cores Recovered 1 | . . . . . . . . . . . . 1 Used . | . . . . . . . . . . . . . Hacking Detections 35 | . 6 1 . . 7 . 8 7 . . 3 3 Full Trace Events 7 | . 1 . . . 2 . 1 2 . . 1 . Feedback Events . | . . . . . . . . . . . . . Feedback Blocked . | . . . . . . . . . . . . . Robot Schematics Acquired . | . . . . . . . . . . . . . Robots Built 3 | . . . . . . . . 3 . . . . Authchips . | . . . . . . . . . . . . . Time 49 | . . . . . . . . 49 . . . . Total Robot Build Rating 6 | . . . . . . . . 6 . . . . Part Schematics Acquired 4 | . . . . . 4 . . . . . . . Parts Built 4 | . . . . . . . . 4 . . . . Authchips . | . . . . . . . . . . . . . Time 72 | . . . . . . . . 72 . . . . Total Part Build Rating 12 | . . . . . . . . 12 . . . . Parts Repaired 2 | . . . . . 1 . . 1 . . . . Time 57 | . . . . . 38 . . 19 . . . . Parts Recycled . | . . . . . . . . . . . . . Recycled Matter . | . . . . . . . . . . . . . Retrieved Matter . | . . . . . . . . . . . . . Retrieved Components 10 | . 10 . . . . . . . . . . . Parts Scanalyzed 5 | . . . . . 3 . 1 1 . . . . Part Schematics Acquired 3 | . . . . . 3 . . . . . . . Parts Damaged . | . . . . . . . . . . . . . Bothacking | -11 -10 -10 -10 -9 -8 -8 -8 -7 -7 -7 -7 -7 ------------ Run | Jun Mat Min Exi Min Mat Gar Mat Fac Was Fac Gar Fac Used RIF Installer . | . . . . . . . . . . . . . Robots Hacked . | . . . . . . . . . . . . . Non-combat . | . . . . . . . . . . . . . Combat . | . . . . . . . . . . . . . Robot Hacks Applied . | . . . . . . . . . . . . . Relay Couplers Released 40 | . . . . . . 22 . . . . 18 . Machine Destruction 37 | . . . . . . 22 . . . . 15 . Programmers 3 | . . . . . . . . . . . 3 . Fabnet Peak Effective % . | . . . . . . . . . . . . . Robots Rewired . | . . . . . . . . . . . . . Allies Hacked . | . . . . . . . . . . . . . Hacks Repelled . | . . . . . . . . . . . . . Allies | -11 -10 -10 -10 -9 -8 -8 -8 -7 -7 -7 -7 -7 -------- Run | Jun Mat Min Exi Min Mat Gar Mat Fac Was Fac Gar Fac Total Allies 12 | . . 6 . . . . . 3 1 . 2 . Largest Group 5 | . . 5 5 3 . . . 3 1 . 2 . Highest-Rated Group 83 | . . 83 83 40 . . . 54 31 . 56 . Highest-Rated Ally 31 | . . 31 31 16 . . . 18 31 . 31 . Total Orders . | . . . . . . . . . . . . . Ally Attacks 60 | . . 11 . 26 . . . 8 3 . 12 . Total Damage 864 | . . 105 . 281 . . . 226 62 . 190 . Kills 12 | . . 5 . 3 . . . 1 . . 3 . Allies Corrupted . | . . . . . . . . . . . . . Allies Melted . | . . . . . . . . . . . . . Intel | -11 -10 -10 -10 -9 -8 -8 -8 -7 -7 -7 -7 -7 ------- Run | Jun Mat Min Exi Min Mat Gar Mat Fac Was Fac Gar Fac Robot Analysis Total 1 | . . . . . 1 . . . . . . . Derelict Logs Recovered 3 | . . 2 . 1 . . . . . . . . Drone Launches . | . . . . . . . . . . . . . Drone Recoveries . | . . . . . . . . . . . . . Exploration | -11 -10 -10 -10 -9 -8 -8 -8 -7 -7 -7 -7 -7 ------------- Run | Jun Mat Min Exi Min Mat Gar Mat Fac Was Fac Gar Fac Turns Passed 16997 | 3 1829 1494 1368 2240 1240 1617 2245 1961 152 124 2260 464 Spaces Moved 8340 | 1 931 892 611 892 694 623 822 1038 129 62 1378 267 Core 26 | . . . . . . . . . . . 26 . Treads 5063 | 1 931 892 611 726 49 129 560 661 . . 236 267 Legs 742 | . . . . . . . 167 . . . 575 . Wheels 2065 | . . . . 166 645 358 . 377 129 62 328 . Hover 231 | . . . . . . 136 95 . . . . . Flight 213 | . . . . . . . . . . . 213 . Fastest Speed 29 | 160 160 160 160 110 110 120 160 100 100 115 29 160 Average Speed 167 | 160 160 160 223 215 128 198 220 149 105 115 119 160 Slowest Speed 850 | 160 160 160 240 320 320 500 440 410 115 115 850 160 Overloaded Moves . | . . . . . . . . . . . . . Propulsion Burnouts . | . . . . . . . . . . . . . Robots Hopped . | . . . . . . . . . . . . . Cave-ins Triggered 2 | . 1 . . . . . . . . . 1 . Exploration Rate (%) 54 | 2 99 100 93 100 47 38 41 18 70 2 97 6 Regions Visited 12 Branch Regions 3 Pre-discovered Areas 1 | . . . 1 . . . . . . . . . Known Exits Taken 2 | . . . . . 1 . . . . 1 . . Unknown Exits Taken 6 | 1 1 1 1 1 . . 1 . . . . . Scrap Searched 3 | . . 1 . 2 . . . . . . . . Spaces Dug 103 | . . . . 21 2 18 . 5 . . 57 . Terrain Destroyed 657 | . 22 25 . 55 22 57 30 41 66 . 339 . Melee 36 | . . . . . 2 7 . 5 . . 22 . Projectile 42 | . 1 . . 4 5 . 24 5 . . 3 . AOE 579 | . 21 25 . 51 15 50 6 31 66 . 314 . Terrain Rammed . | . . . . . . . . . . . . . Walls Destroyed . | . . . . . . . . . . . . . Machines Disabled . | . . . . . . . . . . . . . Actions | -11 -10 -10 -10 -9 -8 -8 -8 -7 -7 -7 -7 -7 --------- Run | Jun Mat Min Exi Min Mat Gar Mat Fac Was Fac Gar Fac Total 10419 | 2 1158 946 615 1140 969 822 1136 1341 135 115 1750 290 Wait 916 | . 84 37 . 194 140 12 151 179 . 33 86 . Move 8331 | . 930 891 610 891 694 622 821 1038 128 62 1377 267 Hop . | . . . . . . . . . . . . . Pick Up 92 | . 27 2 3 2 19 4 16 8 . 4 4 3 Fast Attach 91 | . 3 . . 4 15 3 18 18 . 2 23 5 Attach 36 | . 6 . . 2 4 5 7 2 . 8 2 . Detach 12 | . . . . 2 2 . 4 2 . 2 . . Swap 102 | 2 16 3 1 6 13 14 10 10 2 . 23 2 Drop 126 | . 26 1 1 2 28 1 25 24 . 3 13 2 Fire 448 | . 65 12 . 29 51 34 84 55 5 1 101 11 Melee 166 | . . . . 8 3 73 . 5 . . 77 . Ram 6 | . . . . . . 6 . . . . . . Kick . | . . . . . . . . . . . . . Crush 1 | . 1 . . . . . . . . . . . Escape Stasis 88 | . . . . . . 48 . . . . 40 . Rewire 4 | . . . . . . . . . . . 4 . Trap . | . . . . . . . . . . . . . Miscellaneous . | . . . . . . . . . . . . . Route ------- -11/Junkyard -10/Materials (discovered 5 exits: [*Mat x3] / *Min x2) -10/Mines (discovered 3 exits: [*Mat x2] / *Exi) -10/Exiles (discovered 2 exits: [*Min x2]) -9/Mines (discovered 2 exits: *Mat x2) -8/Materials -8/Garrison -8/Materials -7/Factory -7/Waste -7/Factory (discovered 3 exits: Low x2 / Gar) -7/Garrison (discovered 3 exits: *Fac x3) -7/Factory (discovered 1 exit: *Low) History --------- Turn | Location | Event 4 | -11/Junkyard | Discovered new exit (range 0) 4 | -11/Junkyard | Entered Materials 234 | -10/Materials | Discovered new exit (range 7) 301 | -10/Materials | Build established: Mutant 681 | -10/Materials | Discovered new exit (range 16) 715 | -10/Materials | Build established: Scavenger-Mutant 1060 | -10/Materials | Crushed by falling debris 1091 | -10/Materials | Lost 5 parts (2p1u2w) 1122 | -10/Materials | Discovered new exit (range 16) 1303 | -10/Materials | Discovered new exit (range 11) 1331 | -10/Materials | Build established: Mutant 1557 | -10/Materials | Core integrity fell below 50% 1581 | -10/Materials | Discovered new exit (range 8) 1833 | -10/Materials | Entered Mines 1836 | -10/Mines | Received a Mining Laser from a helpful Derelict 1935 | -10/Mines | Received a Rocket Launcher from a helpful Derelict 1942 | -10/Mines | Learned 2 Materials zone layouts 2153 | -10/Mines | Discovered new exit (range 12) 2269 | -10/Mines | Found a damaged Exp. Sensor Array with a note attached 2273 | -10/Mines | Found Prototype Device 2274 | -10/Mines | Identified Exp. Sensor Array 2388 | -10/Mines | A weapon hastily lodged in a ceiling crevice suddenly fell to the ground 2481 | -10/Mines | Assisted by bots powering up and referring to "LRC-V3" 2835 | -10/Mines | Discovered new exit (range 6) 2862 | -10/Mines | Deemed a non-threat by the Exiles lab entrance 2864 | -10/Mines | Discovered new exit (range 5) 3327 | -10/Mines | Entered Exiles 3327 | -10/Exiles | Accompanied by 5 allies 3350 | -10/Exiles | Discovered new exit (range 15) 3357 | -10/Exiles | Led the pair of lost Derelicts to a safe place 3404 | -10/Exiles | Met 8R-AWN 3431 | -10/Exiles | Met EX-HEX 3489 | -10/Exiles | Met EX-DEC 3691 | -10/Exiles | Visited The Gauntlet 4062 | -10/Exiles | Learned location of Zion (-7) 4122 | -10/Exiles | Met EX-BIN 4280 | -10/Exiles | Aligned with FarCom system 4283 | -10/Exiles | Given EX-Vault access code 4340 | -10/Exiles | Opened EX-Vault 4360 | -10/Exiles | Found Gui. Plasma Cannon 4409 | -10/Exiles | Warned to stay clear of 0b10 Research branches 4666 | -10/Exiles | Discovered new exit (range 14) 4695 | -10/Exiles | Left Exiles lab with Gui. Plasma Cannon 4695 | -10/Exiles | Entered Mines 4695 | -9/Mines | Accompanied by 3 allies 4842 | -9/Mines | Discovered new exit (range 4) 4994 | -9/Mines | Discovered new exit (range 9) 5305 | -9/Mines | Excavation squad dispatched 5305 | -9/Mines | A large section of the Mines collapsed 6935 | -9/Mines | Entered Materials 6935 | -8/Materials | Evolved 4 slots: Propulsion x2, Utility x2 7726 | -8/Materials | Central database locked down 8062 | -8/Materials | Repaired Hardlight Generator 8175 | -8/Materials | Identified exit to Garrison 8175 | -8/Materials | Entered Garrison 8310 | -8/Garrison | Triggered checkpoint 8476 | -8/Garrison | Garrison Relay disabled 8482 | -8/Garrison | Garrison Relay disabled 8488 | -8/Garrison | Garrison Relay disabled 8511 | -8/Garrison | Garrison Relay disabled 8560 | -8/Garrison | Garrison Relay disabled 8836 | -8/Garrison | Lost 4 parts (4n) 9475 | -8/Garrison | Triggered checkpoint 9622 | -8/Garrison | Discovered new exit (range 12) 9767 | -8/Garrison | Spotted B-75 Beast 9790 | -8/Garrison | Core integrity fell below 50% 9792 | -8/Garrison | Entered Materials 9821 | -8/Materials | Lost 5 parts (2n2u1w) 10135 | -8/Materials | Build established: Hacker-Mutant 10265 | -8/Materials | Lost 4 parts (1n1u2w) 10292 | -8/Materials | System corruption reached 10% 10517 | -8/Materials | Central database locked down 10588 | -8/Materials | Core integrity fell below 20% 11357 | -8/Materials | Build established: Scavenger-Mutant 11786 | -8/Materials | Build established: Hacker-Mutant 11939 | -8/Materials | Discovered new exit (range 16) 12037 | -8/Materials | Entered Factory 12037 | -7/Factory | Evolved 2 slots: Propulsion x1, Utility x1 12286 | -7/Factory | Build established: Scavenger-Mutant 12588 | -7/Factory | Fabricated L-31 Rogue (x3) 12624 | -7/Factory | Fabricated Arm. Treads (x2) 12940 | -7/Factory | Build established: Hacker-Mutant 13612 | -7/Factory | Repaired Imp. Light Armor Plating 13813 | -7/Factory | Fabricated Arm. Treads (x2) 13998 | -7/Factory | Sucked down chute 13998 | -7/Factory | Entered Waste 13999 | -7/Waste | Met a frightened Derelict 14011 | -7/Waste | Spotted C-40 Crusher 14032 | -7/Waste | Crushed by Compactor (1 part destroyed, 1 dropped) 14043 | -7/Waste | Crushed by Compactor (1 part destroyed) 14056 | -7/Waste | Spotted C-40 Crusher 14072 | -7/Waste | Spotted C-40 Crusher 14074 | -7/Waste | Lost 3 parts (1n1u1w) 14084 | -7/Waste | Spotted C-40 Crusher 14111 | -7/Waste | Spotted C-40 Crusher 14127 | -7/Waste | Crushed by Compactor (1 part destroyed) 14137 | -7/Waste | Discovered new exit (range 11) 14150 | -7/Waste | Entered Factory 14158 | -7/Factory | Lost 3 parts (1p1n1u) 14164 | -7/Factory | Identified exit to Lower Caves 14274 | -7/Factory | Identified exit to Garrison 14274 | -7/Factory | Entered Garrison 14364 | -7/Garrison | Triggered checkpoint 14494 | -7/Garrison | Garrison Relay disabled 14643 | -7/Garrison | Triggered checkpoint 14679 | -7/Garrison | Triggered checkpoint 14776 | -7/Garrison | Discovered new exit (range 8) 14825 | -7/Garrison | Triggered checkpoint 14865 | -7/Garrison | Core integrity fell below 50% 14932 | -7/Garrison | Lost 6 parts (1p3n2u) 15057 | -7/Garrison | Triggered checkpoint 15113 | -7/Garrison | Triggered checkpoint 15355 | -7/Garrison | Discovered new exit (range 3) 15384 | -7/Garrison | Build established: Scavenger-Mutant 15422 | -7/Garrison | Crushed by falling debris 15422 | -7/Garrison | System corruption reached 10% 15426 | -7/Garrison | Triggered checkpoint 15434 | -7/Garrison | Core integrity fell below 20% 15465 | -7/Garrison | Lost 5 parts (3n2u) 15483 | -7/Garrison | Garrison Relay disabled 15536 | -7/Garrison | Garrison Relay disabled 15859 | -7/Garrison | Garrison Relay disabled 16149 | -7/Garrison | Discovered new exit (range 8) 16187 | -7/Garrison | Rescued a captive Derelict 16187 | -7/Garrison | Rescued a captive Derelict 16188 | -7/Garrison | Lost 3 parts (1p1u1w) 16316 | -7/Garrison | Phase Generator disabled 16352 | -7/Garrison | Triggered checkpoint 16534 | -7/Garrison | Entered Factory 16989 | -7/Factory | Discovered exit to Lower Caves (range 14) 16998 | -7/Factory | Destroyed by Y-54 Guardian with Gatling Laser Last Messages --------------- 16843_ System corrupted: Flak Gun jammed. 16845_ Y-54 Guardian destroyed. 16849_ System corrupted: Matter fused (-8). 16864_ System corrupted: Energy discharge (-58). 16885_ System Restoration Module purges 1% system corruption (28%). 16885_ System Restoration Module expended. 16895_ Acquired 49 matter. 16905_ System corrupted: Energy discharge (-116). 16922_ System corrupted: Component data lost. 16927_ K-01 Serf cleans the Subcomponent Replicator. 16948_ Acquired Unknown Storage. 16948_ Identified Lrg. Storage Unit. 16951_ System corrupted: Heat flow error (+239). 16951_ Acquired Dynamic Insulation System. 16970_ QOVGK9M7NS >21|XPIJG 16977_ ALERT: Cargo convoy en route, clear transfer corridor. 16985_ EEHWTY%A6Q:TR62K VCFYKQORLI7YSWUYS 16989_ EXIT=FOUND: LOWER CAVES 16994_ U-05 Engineer destroyed. 16997_ Acquired Lgt. Ion Engine. Map ----- +----------------------------------------------------+ | ?????????????????????????????????????????????????? | | ?????????????????????????????????????????????????? | | ?????????????????????????????????????????????????? | | ?????????????????????????????????????????????????? | | ?????????????????????????????????????????????????? | | ?????????????????????????????????????????????????? | | ?????????????????????????????????????????????????? | | ?????????????????????????????????????????????????? | | ?????????????????????????????????????????????????? | | ?????????????????????????????????????????????????? | | ??????????????????????? ??????????????????????? | | ?????????????????????# ??????????????????????? | | ?????????????????????# ??????????????????????? | | ?????????????????????# #?????????????????????? | | ?????????????????????+ #?????????????????????? | | ?????????????????????# #?????????????????????? | | ?????????????????????# #?????????????????????? | | ?????????????????????# #?????????????????????? | | ?????????????????????# #?????????????????????? | | ?????????????????????#^^^ #?????????????????????? | | ?????????????????????# #?????????????????????? | | ?????????????????????# #?????????????????????? | | ?????????????????????# #??######?????????????? | | ??????????????#??????# #?? ??????????????? | | ????????????? ?????# !=#? """ ??????????????? | | ??????????? ##### @%#? """ #????????????? | | ?????????? |# """ #????????????? | | ?????????? Y # #????????????? | | ?????????? + #????????????? | | ??????????? ##### # !=#????????????? | | ??????????? ??????# # !=#????????????? | | ???????????########### k#? #????????????? | | ???????????# # #?########????????????? | | ???????????#""" # # ?????????????? | | ???????????#""" !!! # # """ ""?????????????? | | ???????????#"S ! + + """ ""?????????????? | | ???????????#""" !! # # """ ""?????????????? | | ???????????# "" | # # ?????????????? | | ???????????# # ##########????????????? | | ##?????????# # k # ! #????????????? | | #?????????########### # #????????????? | | #???????????????????# # +????????????? | | #???????????????????# + """ #????????????? | | #???????????????????# # """"" #????????????? | | #???????????????????# # """"" #????????????? | | !#######??############ ########??????????????? | | # #??# ## #?????????????????????? | | ##"" #??# """ ## #?????????????????????? | | #"" #??# """"" ## #?????????????????????? | | #"T #??# """"" ## #?????????????????????? | +----------------------------------------------------+ Best States ------------- Heat Dissipation 62 Energy Generation 18 Energy Capacity 310 Matter Stores 300 Matter Capacity 450 Sight Range 16 Robot Scan Range 20 Terrain Scan Density 10 Armor Coverage 375 Resistance: TH 10 Resistance: EM 15 Core Shielding 20 Evasion (%) 63 Targeting Accuracy 8 Recoil Reduction 5 Matter Filtering 30 Offensive Hacking 20 Defensive Hacking 10 Item Schematics ----------------- Hcp. Storage Unit | -8/Materials | Hacked Arm. Treads | -8/Materials | Scanalyzed Hacking Suite | -8/Materials | Scanalyzed Arm. Wheel | -8/Materials | Scanalyzed Robot Schematics ------------------ None Fabricated ------------ L-31 Rogue | x3 | -7/Factory | Preloaded Arm. Treads | x2 | -7/Factory Arm. Treads | x2 | -7/Factory Alien Tech Used ----------------- None Achievements -------------- None Challenges ------------ None Game ------ Seed ThrusterGaussCalibrator Manual? 0 Play Time 02:40:36 Cumulative 250.9 hours Start 2023.09.30 @ 08:16:23 End 2023.10.02 @ 16:15:51 Sessions 12 Manual Loads 0 Difficulty Rogue Special Mode None Game No. 136 Rogue 92 Adventurer 44 Explorer 0 Win Type - Total 2 Types 2/0/0/0/0/0/0/0/0 Lore% 60 Gallery% 63 Achievement% 57 Wizard Run 0 Options --------- ASCII 0 Keyboard 1 Movement Vi Keybinds 1 Fullscreen 2 Font 18/X11Bold Map View 76x50 Tactical HUD 1 Map Filters NONE Filters NONE Steam 1 RUN: f665c93f-43d3-4eec-8e44-cbe1c7e6eed9